[Event "Titled Tuesday Blitz November 22 Late 2022"]
[White "Sadhwani, Raunak"]
[Black "Goltsev, Dmitry"]
[WhiteFideId "35093487"]
[BlackFideId "24176710"]
[WhiteElo "2656"]
[BlackElo "2289"]
[Result "1-0"]
[Round "07"]
[TimeControl "180+1"]
[Date "2022.11.22"]
[WhiteClock "0:01:05"]
[BlackClock "0:00:15"]

1. c4 {[%clk 0:02:54]}  Nf6 {[%clk 0:02:58]} 2. Nc3 {[%clk 0:02:54]}  g6 {[%clk 0:02:58]} 3. e4 {[%clk 0:02:54]}  d6 {[%clk 0:02:58]} 4. d4 {[%clk 0:02:55]}  Bg7 {[%clk 0:02:58]} 5. Nf3 {[%clk 0:02:56]}  O-O {[%clk 0:02:58]} 6. Be2 {[%clk 0:02:56]}  e5 {[%clk 0:02:53]} 7. O-O {[%clk 0:02:57]}  exd4 {[%clk 0:02:53]} 8. Nxd4 {[%clk 0:02:58]}  Nc6 {[%clk 0:02:53]} 9. Nc2 {[%clk 0:02:49]}  Be6 {[%clk 0:02:50]} 10. f3 {[%clk 0:02:42]}  Re8 {[%clk 0:02:48]} 11. Bg5 {[%clk 0:02:40]}  h6 {[%clk 0:02:46]} 12. Bh4 {[%clk 0:02:40]}  g5 {[%clk 0:02:45]} 13. Bf2 {[%clk 0:02:39]}  Ne5 {[%clk 0:02:38]} 14. Ne3 {[%clk 0:02:39]}  Qd7 {[%clk 0:02:24]} 15. Rc1 {[%clk 0:02:38]}  Ng6 {[%clk 0:02:16]} 16. Re1 {[%clk 0:02:36]}  Nf4 {[%clk 0:02:16]} 17. Bf1 {[%clk 0:02:36]}  c6 {[%clk 0:02:15]} 18. Qd2 {[%clk 0:02:35]}  Rad8 {[%clk 0:02:14]} 19. Rcd1 {[%clk 0:02:33]}  Qc7 {[%clk 0:02:03]} 20. Nc2 {[%clk 0:02:09]}  d5 {[%clk 0:01:48]} 21. cxd5 {[%clk 0:02:08]}  cxd5 {[%clk 0:01:49]} 22. e5 {[%clk 0:02:04]}  Nd7 {[%clk 0:01:48]} 23. Nb5 {[%clk 0:02:01]}  Qc6 {[%clk 0:01:25]} 24. Nb4 {[%clk 0:01:51]}  Qc8 {[%clk 0:01:08]} 25. Nd6 {[%clk 0:01:42]}  Qb8 {[%clk 0:01:08]} 26. Nxe8 {[%clk 0:01:42]}  Rxe8 {[%clk 0:01:09]} 27. Nd3 {[%clk 0:01:29]}  Nxd3 {[%clk 0:01:09]} 28. Bxd3 {[%clk 0:01:30]}  Nxe5 {[%clk 0:01:08]} 29. Bg3 {[%clk 0:01:28]}  a6 {[%clk 0:00:59]} 30. Kh1 {[%clk 0:01:28]}  f6 {[%clk 0:00:53]} 31. Bc2 {[%clk 0:01:24]}  Qd6 {[%clk 0:00:47]} 32. Bb3 {[%clk 0:01:23]}  Rd8 {[%clk 0:00:44]} 33. f4 {[%clk 0:01:21]}  gxf4 {[%clk 0:00:38]} 34. Bxf4 {[%clk 0:01:22]}  h5 {[%clk 0:00:33]} 35. Qe2 {[%clk 0:01:15]}  Bg4 {[%clk 0:00:31]} 36. Rxd5 {[%clk 0:01:14]}  Qxd5 {[%clk 0:00:19]} 37. Bxd5+ {[%clk 0:01:15]}  Rxd5 {[%clk 0:00:20]} 38. Qe4 {[%clk 0:01:14]}  Rb5 {[%clk 0:00:17]} 39. Bxe5 {[%clk 0:01:09]}  Rxe5 {[%clk 0:00:17]} 40. Qc4+ {[%clk 0:01:09]}  Be6 {[%clk 0:00:17]} 41. Qxe6+ {[%clk 0:01:09]}  Rxe6 {[%clk 0:00:17]} 42. Rxe6 {[%clk 0:01:10]}  f5 {[%clk 0:00:18]} 43. Rb6 {[%clk 0:01:09]}  f4 {[%clk 0:00:18]} 44. Rxb7 {[%clk 0:01:07]}  h4 {[%clk 0:00:18]} 45. Kg1 {[%clk 0:01:06]}  Be5 {[%clk 0:00:16]} 46. h3 {[%clk 0:01:05]}  Kf8 {[%clk 0:00:15]} 47. Kf2 {[%clk 0:01:05]} 1-0


[Site "https://www.chess.com"]

[Event "Titled Tuesday Blitz November 22 Late 2022"]
[White "Sariego Figueredo, Wilfredo"]
[Black "Torres Dominguez, David"]
[WhiteFideId "3500080"]
[BlackFideId "2220857"]
[WhiteElo "2309"]
[BlackElo "2037"]
[Result "0-1"]
[Round "07"]
[TimeControl "180+1"]
[Date "2022.11.23"]
[WhiteClock "0:00:01"]
[BlackClock "0:00:03"]

1. d4 {[%clk 0:02:49]}  e5 {[%clk 0:02:59]} 2. dxe5 {[%clk 0:02:48]}  d6 {[%clk 0:02:59]} 3. exd6 {[%clk 0:02:48]}  Bxd6 {[%clk 0:03:00]} 4. Nf3 {[%clk 0:02:48]}  Bg4 {[%clk 0:03:00]} 5. g3 {[%clk 0:02:48]}  Nc6 {[%clk 0:02:59]} 6. Bg2 {[%clk 0:02:48]}  Qd7 {[%clk 0:02:59]} 7. O-O {[%clk 0:02:48]}  O-O-O {[%clk 0:02:59]} 8. c3 {[%clk 0:02:47]}  h5 {[%clk 0:02:59]} 9. Qc2 {[%clk 0:02:44]}  h4 {[%clk 0:02:55]} 10. Nbd2 {[%clk 0:02:34]}  Bh3 {[%clk 0:02:45]} 11. Ne4 {[%clk 0:02:29]}  Bxg2 {[%clk 0:02:41]} 12. Nxd6+ {[%clk 0:02:28]}  cxd6 {[%clk 0:02:41]} 13. Kxg2 {[%clk 0:02:27]}  hxg3 {[%clk 0:02:41]} 14. fxg3 {[%clk 0:02:27]}  Qh3+ {[%clk 0:02:39]} 15. Kf2 {[%clk 0:02:27]}  Ne5 {[%clk 0:02:37]} 16. Nxe5 {[%clk 0:02:21]}  Qxh2+ {[%clk 0:02:35]} 17. Ke1 {[%clk 0:02:20]}  Qxg3+ {[%clk 0:02:33]} 18. Kd1 {[%clk 0:02:20]}  dxe5+ {[%clk 0:02:32]} 19. Bd2 {[%clk 0:02:20]}  Nf6 {[%clk 0:02:25]} 20. Qf5+ {[%clk 0:02:19]}  Kb8 {[%clk 0:02:24]} 21. Kc2 {[%clk 0:02:13]}  Rh5 {[%clk 0:02:03]} 22. Qf3 {[%clk 0:01:59]}  Qg6+ {[%clk 0:02:01]} 23. Kb3 {[%clk 0:01:55]}  Rxd2 {[%clk 0:01:57]} 24. Rac1 {[%clk 0:01:50]}  Rh8 {[%clk 0:01:20]} 25. Rg1 {[%clk 0:01:39]}  Qh6 {[%clk 0:01:15]} 26. Rh1 {[%clk 0:01:30]}  Nh5 {[%clk 0:01:13]} 27. Qxf7 {[%clk 0:01:18]}  Qb6+ {[%clk 0:01:11]} 28. Ka3 {[%clk 0:01:15]}  Qxb2+ {[%clk 0:01:09]} 29. Ka4 {[%clk 0:01:14]}  b5+ {[%clk 0:00:59]} 30. Ka5 {[%clk 0:01:11]}  Qa3+ {[%clk 0:00:58]} 31. Kxb5 {[%clk 0:01:11]}  Rb2+ {[%clk 0:00:58]} 32. Kc4 {[%clk 0:01:11]}  Rc8+ {[%clk 0:00:58]} 33. Kd3 {[%clk 0:01:09]}  Nf4+ {[%clk 0:00:55]} 34. Ke4 {[%clk 0:01:00]}  Rxe2+ {[%clk 0:00:53]} 35. Kf5 {[%clk 0:00:54]}  Rf8 {[%clk 0:00:33]} 36. Rb1+ {[%clk 0:00:53]}  Kc8 {[%clk 0:00:16]} 37. Rh8 {[%clk 0:00:54]}  g6+ {[%clk 0:00:16]} 38. Kf6 {[%clk 0:00:41]}  Qd6+ {[%clk 0:00:13]} 39. Kg7 {[%clk 0:00:41]}  Ne6+ {[%clk 0:00:11]} 40. Qxe6+ {[%clk 0:00:28]}  Qxe6 {[%clk 0:00:10]} 41. Rxf8+ {[%clk 0:00:28]}  Kd7 {[%clk 0:00:11]} 42. Rf7+ {[%clk 0:00:26]}  Kc6 {[%clk 0:00:08]} 43. Rf6 {[%clk 0:00:26]}  Qxf6+ {[%clk 0:00:05]} 44. Kxf6 {[%clk 0:00:27]}  Rxa2 {[%clk 0:00:04]} 45. Kxe5 {[%clk 0:00:25]}  Ra5+ {[%clk 0:00:04]} 46. Kf4 {[%clk 0:00:24]}  g5+ {[%clk 0:00:04]} 47. Kg4 {[%clk 0:00:24]}  Kc5 {[%clk 0:00:04]} 48. Rb4 {[%clk 0:00:20]}  Kc6 {[%clk 0:00:02]} 49. Kg3 {[%clk 0:00:17]}  Kd6 {[%clk 0:00:03]} 50. Kg4 {[%clk 0:00:17]}  Rc5 {[%clk 0:00:03]} 51. Ra4 {[%clk 0:00:16]}  a5 {[%clk 0:00:03]} 52. c4 {[%clk 0:00:13]}  Kc6 {[%clk 0:00:01]} 53. Kg3 {[%clk 0:00:13]}  Kb6 {[%clk 0:00:01]} 54. Kg4 {[%clk 0:00:13]}  Re5 {[%clk 0:00:01]} 55. Ra2 {[%clk 0:00:09]}  Rc5 {[%clk 0:00:02]} 56. Rc2 {[%clk 0:00:08]}  Kc6 {[%clk 0:00:03]} 57. Rc3 {[%clk 0:00:07]}  a4 {[%clk 0:00:02]} 58. Rc2 {[%clk 0:00:04]}  Kb6 {[%clk 0:00:02]} 59. Rb2+ {[%clk 0:00:04]}  Ka5 {[%clk 0:00:03]} 60. Rc2 {[%clk 0:00:01]}  Kb4 {[%clk 0:00:03]} 0-1


[Site "https://www.chess.com"]

[Event "Titled Tuesday Blitz November 22 Late 2022"]
[White "Schmidt, Harald"]
[Black "Pinheiro, Iung Alicio de O."]
[WhiteFideId "4648358"]
[BlackFideId "2104350"]
[WhiteElo "2312"]
[BlackElo "2283"]
[Result "0-1"]
[Round "07"]
[TimeControl "180+1"]
[Date "2022.11.23"]
[WhiteClock "0:02:29"]
[BlackClock "0:02:12"]

1. e4 {[%clk 0:03:00]}  c5 {[%clk 0:02:56]} 2. b3 {[%clk 0:02:58]}  Nf6 {[%clk 0:02:52]} 3. e5 {[%clk 0:02:57]}  Nd5 {[%clk 0:02:51]} 4. c4 {[%clk 0:02:56]}  Nc7 {[%clk 0:02:45]} 5. Nf3 {[%clk 0:02:55]}  Nc6 {[%clk 0:02:44]} 6. Bb2 {[%clk 0:02:54]}  Ne6 {[%clk 0:02:41]} 7. Nc3 {[%clk 0:02:42]}  g6 {[%clk 0:02:40]} 8. Bd3 {[%clk 0:02:35]}  Bg7 {[%clk 0:02:39]} 9. Qe2 {[%clk 0:02:34]}  Nf4 {[%clk 0:02:14]} 10. Qe3 {[%clk 0:02:29]}  Nxg2+ {[%clk 0:02:12]} 0-1


[Site "https://www.chess.com"]

[Event "Titled Tuesday Blitz November 22 Late 2022"]
[White "Schut, Han"]
[Black "Toncheva, Nadya"]
[WhiteFideId "1005561"]
[BlackFideId "2924056"]
[WhiteElo "2024"]
[BlackElo "2101"]
[Result "0-1"]
[Round "07"]
[TimeControl "180+1"]
[Date "2022.11.23"]
[WhiteClock "0:00:04"]
[BlackClock "0:00:05"]

1. e4 {[%clk 0:03:00]}  c5 {[%clk 0:02:59]} 2. Nf3 {[%clk 0:02:58]}  Nc6 {[%clk 0:03:00]} 3. d4 {[%clk 0:02:58]}  cxd4 {[%clk 0:02:59]} 4. Nxd4 {[%clk 0:02:59]}  g6 {[%clk 0:03:00]} 5. c4 {[%clk 0:02:59]}  Bg7 {[%clk 0:03:00]} 6. Be3 {[%clk 0:02:59]}  Nf6 {[%clk 0:03:00]} 7. Nc3 {[%clk 0:02:59]}  O-O {[%clk 0:03:01]} 8. Be2 {[%clk 0:02:59]}  d6 {[%clk 0:03:01]} 9. f3 {[%clk 0:02:58]}  Bd7 {[%clk 0:03:02]} 10. Qd2 {[%clk 0:02:58]}  Nxd4 {[%clk 0:03:02]} 11. Bxd4 {[%clk 0:02:59]}  a5 {[%clk 0:03:02]} 12. b3 {[%clk 0:02:58]}  Bc6 {[%clk 0:03:03]} 13. Rc1 {[%clk 0:02:58]}  Nd7 {[%clk 0:03:03]} 14. Be3 {[%clk 0:02:58]}  Nc5 {[%clk 0:03:02]} 15. O-O {[%clk 0:02:58]}  Qb6 {[%clk 0:03:02]} 16. Nb5 {[%clk 0:02:58]}  Rfc8 {[%clk 0:02:56]} 17. Rc2 {[%clk 0:02:57]}  h5 {[%clk 0:02:55]} 18. Rb1 {[%clk 0:02:56]}  Qd8 {[%clk 0:02:49]} 19. Nd4 {[%clk 0:02:39]}  Bd7 {[%clk 0:02:41]} 20. a3 {[%clk 0:02:28]}  Kh7 {[%clk 0:02:34]} 21. b4 {[%clk 0:02:27]}  axb4 {[%clk 0:02:33]} 22. axb4 {[%clk 0:02:28]}  Ne6 {[%clk 0:02:24]} 23. Nb3 {[%clk 0:02:08]}  Ba4 {[%clk 0:02:13]} 24. f4 {[%clk 0:01:54]}  Bxb3 {[%clk 0:01:48]} 25. Rxb3 {[%clk 0:01:54]}  Ra1+ {[%clk 0:01:48]} 26. Rc1 {[%clk 0:01:34]}  Rxc1+ {[%clk 0:01:48]} 27. Qxc1 {[%clk 0:01:34]}  Nd4 {[%clk 0:01:48]} 28. Bxd4 {[%clk 0:01:20]}  Bxd4+ {[%clk 0:01:49]} 29. Kh1 {[%clk 0:01:11]}  Ra8 {[%clk 0:01:49]} 30. f5 {[%clk 0:01:04]}  Qh8 {[%clk 0:01:17]} 31. Rb1 {[%clk 0:00:39]}  Qe5 {[%clk 0:01:16]} 32. Bd3 {[%clk 0:00:31]}  Ra2 {[%clk 0:00:37]} 33. Qf1 {[%clk 0:00:20]}  Rf2 {[%clk 0:00:36]} 34. Qd1 {[%clk 0:00:18]}  Qf4 {[%clk 0:00:28]} 35. fxg6+ {[%clk 0:00:10]}  fxg6 {[%clk 0:00:28]} 36. e5 {[%clk 0:00:10]}  Bxe5 {[%clk 0:00:23]} 37. Qxh5+ {[%clk 0:00:10]}  Kg7 {[%clk 0:00:16]} 38. Qxg6+ {[%clk 0:00:10]}  Kf8 {[%clk 0:00:16]} 39. Qh5 {[%clk 0:00:09]}  Rd2 {[%clk 0:00:09]} 40. Bf1 {[%clk 0:00:08]}  Rf2 {[%clk 0:00:08]} 41. Bd3 {[%clk 0:00:07]}  Rd2 {[%clk 0:00:04]} 42. Rf1 {[%clk 0:00:06]}  Rf2 {[%clk 0:00:05]} 43. Rxf2 {[%clk 0:00:05]}  Qxf2 {[%clk 0:00:06]} 44. Qh6+ {[%clk 0:00:05]}  Ke8 {[%clk 0:00:05]} 45. Bg6+ {[%clk 0:00:04]}  Kd7 {[%clk 0:00:05]} 46. Qc1 {[%clk 0:00:03]}  Qd4 {[%clk 0:00:04]} 47. Bf5+ {[%clk 0:00:03]}  Kc7 {[%clk 0:00:04]} 48. c5 {[%clk 0:00:03]}  d5 {[%clk 0:00:04]} 49. b5 {[%clk 0:00:03]}  Qh4 {[%clk 0:00:04]} 50. b6+ {[%clk 0:00:03]}  Kb8 {[%clk 0:00:03]} 51. h3 {[%clk 0:00:03]}  Qg3 {[%clk 0:00:03]} 52. Kg1 {[%clk 0:00:04]}  Bd4+ {[%clk 0:00:03]} 53. Kh1 {[%clk 0:00:03]}  Be5 {[%clk 0:00:03]} 54. Kg1 {[%clk 0:00:04]}  Qh2+ {[%clk 0:00:04]} 55. Kf1 {[%clk 0:00:04]}  Qh1+ {[%clk 0:00:04]} 56. Kf2 {[%clk 0:00:04]}  Qxc1 {[%clk 0:00:05]} 0-1


[Site "https://www.chess.com"]

[Event "Titled Tuesday Blitz November 22 Late 2022"]
[White "Shimanov, Aleksandr"]
[Black "Papasimakopoulos, Alexandros"]
[WhiteFideId "4198603"]
[BlackFideId "4244125"]
[WhiteElo "2605"]
[BlackElo "2365"]
[Result "1-0"]
[Round "07"]
[TimeControl "180+1"]
[Date "2022.11.22"]
[WhiteClock "0:00:23"]
[BlackClock "0:00:11"]

1. e4 {[%clk 0:03:00]}  e6 {[%clk 0:03:00]} 2. d4 {[%clk 0:03:00]}  d5 {[%clk 0:03:00]} 3. Nc3 {[%clk 0:03:01]}  Bb4 {[%clk 0:03:00]} 4. Ne2 {[%clk 0:03:00]}  Nc6 {[%clk 0:02:59]} 5. a3 {[%clk 0:02:57]}  Ba5 {[%clk 0:02:55]} 6. Qd3 {[%clk 0:02:35]}  Nge7 {[%clk 0:02:41]} 7. e5 {[%clk 0:02:26]}  O-O {[%clk 0:02:40]} 8. Bg5 {[%clk 0:02:21]}  h6 {[%clk 0:02:36]} 9. Bh4 {[%clk 0:02:21]}  Qe8 {[%clk 0:02:36]} 10. g4 {[%clk 0:02:20]}  Ng6 {[%clk 0:02:33]} 11. Bg3 {[%clk 0:02:20]}  f6 {[%clk 0:02:33]} 12. f4 {[%clk 0:02:19]}  fxe5 {[%clk 0:02:20]} 13. fxe5 {[%clk 0:02:20]}  Bd7 {[%clk 0:02:19]} 14. Bg2 {[%clk 0:02:12]}  Bb6 {[%clk 0:02:11]} 15. h4 {[%clk 0:02:06]}  Nh8 {[%clk 0:02:05]} 16. O-O-O {[%clk 0:01:58]}  Qg6 {[%clk 0:02:05]} 17. Qxg6 {[%clk 0:01:50]}  Nxg6 {[%clk 0:02:06]} 18. Nb1 {[%clk 0:01:21]}  a5 {[%clk 0:01:55]} 19. c3 {[%clk 0:01:16]}  Nce7 {[%clk 0:01:51]} 20. h5 {[%clk 0:01:14]}  Nh8 {[%clk 0:01:51]} 21. Nd2 {[%clk 0:01:13]}  c5 {[%clk 0:01:50]} 22. Nf3 {[%clk 0:01:13]}  Bb5 {[%clk 0:01:48]} 23. Nf4 {[%clk 0:01:08]}  Bd7 {[%clk 0:01:44]} 24. dxc5 {[%clk 0:01:06]}  Bxc5 {[%clk 0:01:44]} 25. Nd4 {[%clk 0:01:06]}  Bxd4 {[%clk 0:01:40]} 26. cxd4 {[%clk 0:01:07]}  Nf7 {[%clk 0:01:38]} 27. Kd2 {[%clk 0:01:08]}  Ng5 {[%clk 0:01:38]} 28. Ke3 {[%clk 0:01:08]}  a4 {[%clk 0:01:32]} 29. Rc1 {[%clk 0:01:08]}  Nc6 {[%clk 0:01:32]} 30. Bh4 {[%clk 0:01:03]}  Rac8 {[%clk 0:01:15]} 31. Bxg5 {[%clk 0:00:47]}  hxg5 {[%clk 0:01:15]} 32. Nd3 {[%clk 0:00:47]}  b6 {[%clk 0:01:06]} 33. Rhf1 {[%clk 0:00:47]}  Na5 {[%clk 0:00:52]} 34. Rxf8+ {[%clk 0:00:44]}  Kxf8 {[%clk 0:00:50]} 35. Rxc8+ {[%clk 0:00:44]}  Bxc8 {[%clk 0:00:51]} 36. Kd2 {[%clk 0:00:44]}  Ba6 {[%clk 0:00:50]} 37. Nb4 {[%clk 0:00:41]}  Bb5 {[%clk 0:00:45]} 38. Bf3 {[%clk 0:00:40]}  Nc4+ {[%clk 0:00:42]} 39. Kc3 {[%clk 0:00:40]}  Ne3 {[%clk 0:00:39]} 40. Nc2 {[%clk 0:00:38]}  Nf1 {[%clk 0:00:16]} 41. Bg2 {[%clk 0:00:31]}  Nh2 {[%clk 0:00:15]} 42. Ne3 {[%clk 0:00:28]}  Be2 {[%clk 0:00:16]} 43. Bh3 {[%clk 0:00:28]}  Ke7 {[%clk 0:00:15]} 44. Kd2 {[%clk 0:00:27]}  Bb5 {[%clk 0:00:13]} 45. Bg2 {[%clk 0:00:26]}  Kd7 {[%clk 0:00:12]} 46. Ke1 {[%clk 0:00:26]}  Bd3 {[%clk 0:00:11]} 47. Kf2 {[%clk 0:00:25]}  Be4 {[%clk 0:00:11]} 48. Kg3 {[%clk 0:00:25]}  Nxg4 {[%clk 0:00:11]} 49. Nxg4 {[%clk 0:00:23]}  Bf5 {[%clk 0:00:10]} 50. Ne3 {[%clk 0:00:23]}  Bd3 {[%clk 0:00:10]} 51. Kg4 {[%clk 0:00:23]}  Kc6 {[%clk 0:00:10]} 52. Kxg5 {[%clk 0:00:23]}  Kb5 {[%clk 0:00:11]} 53. Bh3 {[%clk 0:00:23]} 1-0


[Site "https://www.chess.com"]

[Event "Titled Tuesday Blitz November 22 Late 2022"]
[White "Silva, Caio Henrique Angelico"]
[Black "Gerbelli Neto, Eduardo"]
[WhiteFideId "22777210"]
[BlackFideId "2103281"]
[WhiteElo "1990"]
[BlackElo "2178"]
[Result "1/2-1/2"]
[Round "07"]
[TimeControl "180+1"]
[Date "2022.11.23"]
[WhiteClock "0:01:49"]
[BlackClock "0:01:54"]

1. Nf3 {[%clk 0:03:00]}  Nf6 {[%clk 0:02:59]} 2. g3 {[%clk 0:03:00]}  d5 {[%clk 0:02:58]} 3. Bg2 {[%clk 0:03:01]}  c5 {[%clk 0:02:58]} 4. O-O {[%clk 0:03:01]}  Nc6 {[%clk 0:02:58]} 5. d4 {[%clk 0:03:02]}  e6 {[%clk 0:02:57]} 6. c4 {[%clk 0:03:01]}  dxc4 {[%clk 0:02:57]} 7. Ne5 {[%clk 0:03:00]}  Nxe5 {[%clk 0:02:46]} 8. dxe5 {[%clk 0:03:00]}  Qxd1 {[%clk 0:02:46]} 9. Rxd1 {[%clk 0:03:01]}  Nd5 {[%clk 0:02:43]} 10. Na3 {[%clk 0:02:47]}  c3 {[%clk 0:02:31]} 11. Nb5 {[%clk 0:02:36]}  Bd7 {[%clk 0:02:15]} 12. Nxc3 {[%clk 0:02:36]}  Nxc3 {[%clk 0:02:04]} 13. bxc3 {[%clk 0:02:37]}  O-O-O {[%clk 0:02:04]} 14. Rb1 {[%clk 0:02:33]}  b6 {[%clk 0:02:00]} 15. Bg5 {[%clk 0:02:28]}  Re8 {[%clk 0:01:53]} 16. Rd2 {[%clk 0:02:06]}  Be7 {[%clk 0:01:53]} 17. Bxe7 {[%clk 0:02:06]}  Rxe7 {[%clk 0:01:54]} 18. Be4 {[%clk 0:01:49]} 1/2-1/2


[Site "https://www.chess.com"]

[Event "Titled Tuesday Blitz November 22 Late 2022"]
[White "Sreyas Payyappat"]
[Black "Yurovskykh, Oleksandr"]
[WhiteFideId "46674969"]
[BlackFideId "14134020"]
[WhiteElo "2083"]
[BlackElo "2265"]
[Result "0-1"]
[Round "07"]
[TimeControl "180+1"]
[Date "2022.11.23"]
[WhiteClock "0:00:42"]
[BlackClock "0:01:11"]

1. e4 {[%clk 0:03:00]}  e6 {[%clk 0:02:10]} 2. d4 {[%clk 0:02:50]}  d5 {[%clk 0:02:10]} 3. Nc3 {[%clk 0:02:50]}  dxe4 {[%clk 0:02:10]} 4. Nxe4 {[%clk 0:02:51]}  Bd7 {[%clk 0:02:10]} 5. Nf3 {[%clk 0:02:51]}  Bc6 {[%clk 0:02:11]} 6. Bd3 {[%clk 0:02:51]}  Nd7 {[%clk 0:02:11]} 7. O-O {[%clk 0:02:50]}  Ngf6 {[%clk 0:02:11]} 8. Bg5 {[%clk 0:02:44]}  Be7 {[%clk 0:02:11]} 9. Bxf6 {[%clk 0:02:43]}  Nxf6 {[%clk 0:02:09]} 10. Nxf6+ {[%clk 0:02:42]}  Bxf6 {[%clk 0:02:10]} 11. c3 {[%clk 0:02:39]}  O-O {[%clk 0:02:06]} 12. Re1 {[%clk 0:02:39]}  Bxf3 {[%clk 0:01:54]} 13. Qxf3 {[%clk 0:02:37]}  c6 {[%clk 0:01:55]} 14. Rad1 {[%clk 0:02:17]}  Qd5 {[%clk 0:01:53]} 15. Qh3 {[%clk 0:02:10]}  g6 {[%clk 0:01:49]} 16. b3 {[%clk 0:02:09]}  Rad8 {[%clk 0:01:45]} 17. c4 {[%clk 0:02:08]}  Qa5 {[%clk 0:01:32]} 18. Re2 {[%clk 0:01:54]}  Rxd4 {[%clk 0:01:29]} 19. Red2 {[%clk 0:01:53]}  Rfd8 {[%clk 0:01:27]} 20. Qf3 {[%clk 0:01:50]}  Bg7 {[%clk 0:01:25]} 21. g3 {[%clk 0:01:43]}  e5 {[%clk 0:01:17]} 22. Re2 {[%clk 0:01:19]}  f5 {[%clk 0:01:07]} 23. Ree1 {[%clk 0:00:52]}  Rxd3 {[%clk 0:01:03]} 24. Rxd3 {[%clk 0:00:49]}  Rxd3 {[%clk 0:01:03]} 25. Qxd3 {[%clk 0:00:50]}  Qxe1+ {[%clk 0:01:03]} 26. Kg2 {[%clk 0:00:51]}  Qe4+ {[%clk 0:01:04]} 27. Qxe4 {[%clk 0:00:51]}  fxe4 {[%clk 0:01:05]} 28. Kf1 {[%clk 0:00:52]}  Kf7 {[%clk 0:01:05]} 29. Ke2 {[%clk 0:00:52]}  Ke6 {[%clk 0:01:05]} 30. Ke3 {[%clk 0:00:53]}  Kf5 {[%clk 0:01:06]} 31. h3 {[%clk 0:00:53]}  Bh6+ {[%clk 0:01:07]} 32. Ke2 {[%clk 0:00:52]}  Bc1 {[%clk 0:01:07]} 33. Kd1 {[%clk 0:00:46]}  Bb2 {[%clk 0:01:08]} 34. Ke2 {[%clk 0:00:45]}  Bd4 {[%clk 0:01:08]} 35. f3 {[%clk 0:00:43]}  exf3+ {[%clk 0:01:09]} 36. Kxf3 {[%clk 0:00:44]}  e4+ {[%clk 0:01:10]} 37. Ke2 {[%clk 0:00:45]}  h5 {[%clk 0:01:11]} 38. Kd2 {[%clk 0:00:44]}  h4 {[%clk 0:01:11]} 39. gxh4 {[%clk 0:00:43]}  Kf4 {[%clk 0:01:11]} 40. Ke2 {[%clk 0:00:42]}  Kg3 {[%clk 0:01:11]} 0-1


[Site "https://www.chess.com"]

[Event "Titled Tuesday Blitz November 22 Late 2022"]
[White "Suder, Jakub"]
[Black "Gutkin, Ilya"]
[WhiteFideId "1195310"]
[BlackFideId "16203470"]
[WhiteElo "2243"]
[BlackElo "2265"]
[Result "1-0"]
[Round "07"]
[TimeControl "180+1"]
[Date "2022.11.23"]
[WhiteClock "0:02:36"]
[BlackClock "0:01:14"]

1. d4 {[%clk 0:03:00]}  e6 {[%clk 0:02:59]} 2. c4 {[%clk 0:03:00]}  Bb4+ {[%clk 0:03:00]} 3. Bd2 {[%clk 0:02:59]}  Qe7 {[%clk 0:03:00]} 4. Nf3 {[%clk 0:02:57]}  Nf6 {[%clk 0:02:59]} 5. Nc3 {[%clk 0:02:56]}  O-O {[%clk 0:02:59]} 6. e3 {[%clk 0:02:55]}  d5 {[%clk 0:02:59]} 7. Rc1 {[%clk 0:02:54]}  Rd8 {[%clk 0:02:57]} 8. Qc2 {[%clk 0:02:45]}  c5 {[%clk 0:02:48]} 9. a3 {[%clk 0:02:42]}  Ba5 {[%clk 0:02:07]} 10. cxd5 {[%clk 0:02:41]}  cxd4 {[%clk 0:02:04]} 11. Nxd4 {[%clk 0:02:40]}  Bxc3 {[%clk 0:01:37]} 12. Qxc3 {[%clk 0:02:40]}  exd5 {[%clk 0:01:27]} 13. Qxc8 {[%clk 0:02:37]}  Rxc8 {[%clk 0:01:25]} 14. Rxc8+ {[%clk 0:02:37]}  Ne8 {[%clk 0:01:24]} 15. Bb5 {[%clk 0:02:38]}  Nc6 {[%clk 0:01:14]} 16. Rxa8 {[%clk 0:02:36]} 1-0


[Site "https://www.chess.com"]

[Event "Titled Tuesday Blitz November 22 Late 2022"]
[White "Svane, Rasmus"]
[Black "Mladek, Richard"]
[WhiteFideId "4657101"]
[BlackFideId "386588"]
[WhiteElo "2674"]
[BlackElo "2271"]
[Result "1-0"]
[Round "07"]
[TimeControl "180+1"]
[Date "2022.11.22"]
[WhiteClock "0:02:28"]
[BlackClock "0:01:24"]

1. Nf3 {[%clk 0:03:00]}  d5 {[%clk 0:02:56]} 2. g3 {[%clk 0:03:00]}  c5 {[%clk 0:02:55]} 3. Bg2 {[%clk 0:03:00]}  Nc6 {[%clk 0:02:56]} 4. d4 {[%clk 0:02:59]}  Nf6 {[%clk 0:02:56]} 5. O-O {[%clk 0:02:59]}  e6 {[%clk 0:02:56]} 6. c4 {[%clk 0:02:59]}  dxc4 {[%clk 0:02:56]} 7. Qa4 {[%clk 0:02:58]}  Bd7 {[%clk 0:02:56]} 8. Qxc4 {[%clk 0:02:58]}  b5 {[%clk 0:02:56]} 9. Qc3 {[%clk 0:02:59]}  b4 {[%clk 0:02:50]} 10. Qd3 {[%clk 0:02:59]}  Rc8 {[%clk 0:02:50]} 11. Bf4 {[%clk 0:02:59]}  Nxd4 {[%clk 0:02:34]} 12. Nxd4 {[%clk 0:02:54]}  cxd4 {[%clk 0:02:35]} 13. Nd2 {[%clk 0:02:43]}  Bc5 {[%clk 0:02:21]} 14. Bb7 {[%clk 0:02:39]}  O-O {[%clk 0:02:12]} 15. Bxc8 {[%clk 0:02:33]}  Qxc8 {[%clk 0:02:12]} 16. Rac1 {[%clk 0:02:28]}  Ba4 {[%clk 0:01:24]} 17. Bd6 {[%clk 0:02:27]}  Bxd6 {[%clk 0:01:23]} 18. Rxc8 {[%clk 0:02:28]}  Rxc8 {[%clk 0:01:24]} 19. Qa6 {[%clk 0:02:28]} 1-0


[Site "https://www.chess.com"]